bitfinex/quotes_SOLUSD_20250414
["timestamp","ask_amount","ask_price","bid_price","bid_amount"]
[1744652948519,7.722,129.5,129.45,17.25600075]
[1744652948726,17.19300075,129.49,129.45,17.25600075]
[1744652948909,17.19300075,129.49,129.45,0.063]
[1744652949108,17.19300075,129.49,129.45,7.7879]
[1744652949862,17.19300075,129.49,129.45,24.98090075]
[1744652950066,116.64264961,129.51,129.47,17.19300075]
[1744652950361,9.76638471,129.52,129.49,17.19300075]
[1744652950362,1.6189,129.52,129.49,17.19300075]
[1744652950567,18.81190075,129.52,129.48,17.19300075]
[1744652950936,26.53290075,129.52,129.47,17.19300075]
[1744652951349,26.53290075,129.52,129.48,7.7232]
[1744652951957,17.19300075,129.51,129.45,19.3754]
[1744652952142,17.19300075,129.51,129.47,17.19300075]
[1744652952961,17.19300075,129.51,129.47,24.91640075]
[1744652953270,24.91470075,129.51,129.46,17.19300075]
[1744652953640,17.19300075,129.51,129.46,24.91720075]
[1744652954057,18.81190075,129.52,129.47,17.19300075]
[1744652954364,26.53270075,129.52,129.47,17.19300075]
[1744652954738,17.19300075,129.51,129.47,17.19300075]
[1744652955065,26.53270075,129.52,129.47,24.91620075]
[1744652956862,18.81190075,129.52,129.47,24.91620075]
[1744652957766,17.19300075,129.5,129.46,7.7241]
[1744652959549,17.19300075,129.49,129.45,24.98070075]
[1744652959761,17.19300075,129.48,129.45,0.063]
[1744652960070,17.19300075,129.46,129.45,0.063]
[1744652960271,37.50064961,129.46,129.45,0.063]
[1744652960648,18.85100075,129.46,129.45,0.063]
[1744652960971,45.22494961,129.46,129.45,0.063]
[1744652961641,18.85100075,129.46,129.45,0.063]
[1744652961956,26.57530075,129.46,129.45,0.063]
[1744652964078,18.85100075,129.46,129.45,0.063]
[1744652965669,26.37314886,129.48,129.45,0.063]
[1744652965670,26.54760075,129.49,129.45,0.063]
[1744652965868,17.19300075,129.48,129.45,0.063]
[1744652967469,17.19300075,129.47,129.45,0.063]
[1744652967675,17.19300075,129.47,129.41,0.063]
[1744652967676,18.64964886,129.42,129.41,0.063]
[1744652967977,61.33099664,129.42,129.41,0.063]
[1744652972271,61.18883507,129.42,129.41,0.063]
[1744652972572,35.84264961,129.42,129.41,0.063]
[1744652972750,133.21950075,129.43,129.41,0.063]
[1744652973172,123.99300075,129.43,129.41,0.063]
[1744652973350,97.99300075,129.43,129.39,17.25600075]
[1744652973676,17.19300075,129.42,129.39,0.063]
[1744652973844,17.19300075,129.42,129.39,7.7915]
[1744652974243,97.99300075,129.43,129.39,7.7915]
[1744652975166,17.19300075,129.42,129.39,7.7915]
[1744652975376,80.8,129.43,129.39,7.7915]
[1744652975675,97.99300075,129.43,129.39,7.7915]
[1744652976375,17.19300075,129.45,129.41,17.19300075]
[1744652976671,17.19300075,129.45,129.39,7.7915]
[1744652976672,17.19300075,129.42,129.39,0.063]
[1744652976880,17.19300075,129.4,129.39,0.063]
[1744652978658,43.57054961,129.4,129.39,0.063]
[1744652979174,53.89345844,129.4,129.39,0.063]
[1744652979663,27.51590958,129.4,129.39,0.063]
[1744652982677,7.7276,129.41,129.39,0.063]
[1744652982976,27.51590958,129.4,129.39,0.063]
[1744652984060,18.64964886,129.42,129.39,0.063]
[1744652984375,27.51590958,129.41,129.39,0.063]
[1744652986371,27.51590958,129.4,129.39,0.063]
[1744652986566,18.64964886,129.41,129.39,0.063]
[1744652986775,27.51590958,129.4,129.39,0.063]
[1744652988075,54.46210472,129.4,129.39,0.063]
[1744652995587,54.46210472,129.4,129.38,0.063]
[1744652995588,19.21829514,129.39,129.38,0.063]
[1744652995757,46.73420472,129.39,129.38,0.063]
[1744652996587,77.62270472,129.39,129.38,0.063]
[1744652996975,44.933972,129.36,129.35,0.03]
[1744652997278,52.40964886,129.36,129.35,0.03]
[1744652997486,79.92555844,129.36,129.35,0.03]
[1744652998286,53.92555844,129.36,129.35,0.03]
[1744652998585,62.22450472,129.36,129.35,0.03]
[1744652998788,89.7404143,129.36,129.35,0.03]
[1744652999289,69.1362853,129.36,129.35,0.03]
[1744653000679,51.92244022,129.36,129.35,0.03]
[1744653000883,69.1362853,129.36,129.35,0.03]
[1744653001593,51.78027865,129.36,129.35,0.03]
[1744653003691,43.62349394,129.36,129.35,0.03]
[1744653003873,51.35379394,129.36,129.35,0.03]
[1744653006081,51.78027865,129.36,129.35,0.03]
[1744653008404,51.35379394,129.36,129.35,0.03]
[1744653008592,81.08432314,129.38,129.35,0.03]
[1744653008593,17.21384508,129.37,129.35,0.03]
[1744653008792,17.21384508,129.39,129.35,17.24384508]
[1744653008980,26.37784886,129.4,129.35,0.03]
[1744653009186,32.70134508,129.41,129.36,17.21384508]
[1744653009385,17.21384508,129.39,129.35,0.03]
[1744653009589,17.21384508,129.39,129.35,17.24384508]
[1744653010402,17.21384508,129.39,129.36,7.7303]
[1744653010904,7.76,129.41,129.36,24.94414508]
[1744653011109,0.063,129.42,129.37,1.6086]
[1744653011408,0.063,129.42,129.41,17.21384508]
[1744653011577,0.063,129.42,129.4,17.21384508]
[1744653011998,0.063,129.42,129.41,17.21384508]
[1744653012485,0.063,129.42,129.41,24.94114508]
[1744653013071,0.063,129.42,129.41,31.25624508]
[1744653013273,12.03417656,129.47,129.42,19.21829514]
[1744653013513,12.03417656,129.47,129.46,17.21384508]
[1744653013680,0.063,129.48,129.46,17.21384508]
[1744653013880,0.063,129.48,129.47,17.21384508]
[1744653014601,0.063,129.48,129.47,24.93754508]
[1744653017409,0.063,129.48,129.45,43.21384508]
[1744653017614,0.063,129.48,129.45,26.0]
[1744653018307,17.27684508,129.48,129.44,24.93884508]
[1744653018611,0.063,129.48,129.47,17.21384508]
[1744653018928,0.063,129.48,129.47,17.35600665]
[1744653019084,0.063,129.48,129.47,25.07970665]
[1744653019513,0.063,129.48,129.47,24.93754508]
[1744653021128,0.063,129.48,129.47,31.12180665]
[1744653023200,0.063,129.48,129.47,30.97964508]
[1744653023809,0.063,129.48,129.47,31.12180665]
[1744653024713,0.063,129.48,129.47,50.35733644]
[1744653024888,0.063,129.49,129.48,19.21829514]
[1744653025084,0.063,129.54,129.48,53.6459853]
[1744653025389,0.063,129.54,129.53,17.21384508]
[1744653025911,0.063,129.54,129.52,17.21384508]
[1744653027292,0.063,129.54,129.52,24.93424508]
[1744653027488,0.063,129.54,129.53,17.21384508]
[1744653027798,0.063,129.54,129.53,24.99210665]
[1744653029615,0.063,129.54,129.53,32.71230665]
[1744653029907,0.063,129.54,129.51,24.93464508]
[1744653030913,0.063,129.54,129.52,17.21384508]
[1744653031213,0.063,129.54,129.53,17.21384508]
[1744653032008,0.063,129.55,129.54,19.21829514]
[1744653032202,0.0001,129.56,129.54,53.6459853]
[1744653032400,0.0001,129.56,129.55,17.35600665]
[1744653032604,0.0001,129.56,129.55,17.21384508]
[1744653032912,0.0001,129.56,129.52,27.0222]
[1744653033211,0.0001,129.56,129.54,24.93344508]
[1744653033904,0.0001,129.56,129.54,7.7196]
[1744653034103,0.0001,129.56,129.54,24.93344508]
[1744653035203,0.0001,129.56,129.55,17.21384508]
[1744653035407,0.0001,129.56,129.55,17.35600665]
[1744653036817,0.0001,129.56,129.55,17.78249136]
[1744653037114,0.0001,129.56,129.55,44.55144022]
[1744653037290,0.0001,129.56,129.55,33.19430665]
[1744653037491,0.0001,129.56,129.55,37.38361433]
[1744653037717,0.0001,129.56,129.55,63.77326319]
[1744653038320,0.0001,129.56,129.55,41.36079136]
[1744653038615,0.0001,129.56,129.55,15.459]
[1744653038803,0.0001,129.56,129.55,32.67284508]
[1744653040016,0.0001,129.56,129.55,7.719]
[1744653040222,0.0001,129.56,129.54,7.7193]
[1744653040420,0.0001,129.56,129.54,24.93314508]
[1744653042915,0.0001,129.56,129.53,7.7199]
[1744653043118,17.21394508,129.56,129.52,17.21384508]
[1744653043299,0.0001,129.56,129.52,17.21384508]
[1744653044194,0.0001,129.56,129.52,24.93444508]
[1744653045824,0.0001,129.56,129.53,17.21384508]
[1744653046415,0.0001,129.56,129.53,24.93364508]
[1744653048033,18.64974886,129.56,129.5,7.722]
[1744653048326,17.21384508,129.53,129.48,7.7232]
[1744653048710,17.21384508,129.54,129.49,17.21384508]
[1744653049405,17.21384508,129.52,129.48,7.7232]
[1744653049810,23.63834508,129.53,129.48,24.93704508]
[1744653050529,37.44429394,129.55,129.5,17.21384508]
[1744653050737,17.21384508,129.54,129.5,17.21384508]
[1744653051108,20.23044886,129.55,129.5,17.21384508]
[1744653051425,17.21384508,129.54,129.49,17.21384508]
[1744653052032,24.93354508,129.54,129.49,24.93584508]
[1744653052428,7.7197,129.54,129.49,24.93584508]
[1744653052726,17.21384508,129.53,129.48,7.7229]
[1744653053105,17.21384508,129.52,129.48,24.93674508]
[1744653053612,1.5808,129.55,129.5,17.21384508]
[1744653053812,1.5808,129.55,129.51,17.21384508]
[1744653054029,1.5808,129.55,129.52,7.7208]
[1744653054330,18.79464508,129.55,129.51,24.93494508]
[1744653055330,1.5808,129.55,129.51,24.93494508]
[1744653055528,6.6124,129.56,129.52,17.21384508]
[1744653055834,0.0001,129.56,129.53,17.21384508]
[1744653056129,0.0001,129.56,129.54,7.7196]
[1744653056432,0.0001,129.56,129.55,17.21384508]
[1744653056834,0.0001,129.56,129.54,24.93344508]
[1744653058234,0.0001,129.56,129.55,17.21384508]
[1744653059511,0.0001,129.56,129.55,17.49816822]
[1744653059709,0.063,129.6,129.58,0.42648471]
[1744653060025,0.063,129.6,129.59,17.35600665]
[1744653060228,0.063,129.61,129.6,0.14216157]
[1744653060434,0.063,129.61,129.6,34.56985173]
[1744653060654,0.063,129.61,129.6,17.21384508]
[1744653061031,0.063,129.61,129.59,7.7166]
[1744653061234,0.063,129.61,129.6,17.21384508]
[1744653061956,0.063,129.61,129.6,24.92984508]
[1744653063059,0.063,129.61,129.59,7.7163]
[1744653063255,0.063,129.61,129.59,24.93014508]
[1744653063448,0.063,129.61,129.58,24.93074508]
[1744653063835,0.063,129.61,129.59,17.21384508]
[1744653064361,0.063,129.61,129.58,7.7169]
[1744653064362,0.063,129.61,129.6,17.21384508]
[1744653064545,0.063,129.61,129.6,34.56985173]
[1744653064860,0.0001,129.61,129.6,53.6459853]
[1744653065050,0.03,129.67,129.64,0.14216157]
[1744653065353,0.03,129.67,129.66,34.42769016]
[1744653065680,0.03,129.67,129.66,17.21384508]
[1744653065858,0.03,129.67,129.66,34.56985173]
[1744653066158,0.03,129.68,129.67,0.14216157]
[1744653066457,0.0001,129.68,129.67,17.78249136]
[1744653066752,0.0001,129.68,129.67,17.21384508]
[1744653066954,0.0001,129.68,129.67,17.78249136]
[1744653067460,0.0001,129.68,129.67,60.63515279]
[1744653067964,0.0001,129.68,129.67,49.27081922]
[1744653068335,0.0001,129.68,129.67,49.69730393]
[1744653068542,0.0001,129.68,129.67,68.34695279]
[1744653069260,0.0001,129.69,129.68,18.79181043]
[1744653069429,0.0001,129.69,129.68,46.15006808]
[1744653070266,0.0001,129.69,129.68,54.28775279]
[1744653071128,0.03,129.73,129.69,0.42648471]
[1744653071427,0.03,129.73,129.72,27.35825765]
[1744653072047,0.03,129.73,129.72,62.99406158]
[1744653072259,6.3112,129.81,129.73,0.28432314]
[1744653072465,33.66945765,129.81,129.77,27.35825765]
[1744653072841,6.3112,129.81,129.77,27.35825765]
[1744653073040,28.93125765,129.83,129.78,27.35825765]
[1744653073239,27.35825765,129.82,129.77,27.35825765]
[1744653073551,27.35825765,129.82,129.78,27.35825765]
[1744653073753,1.573,129.83,129.79,27.35825765]
[1744653074253,1.573,129.83,129.8,27.35825765]
[1744653074437,1.573,129.83,129.79,35.06275765]
[1744653074843,6.436,129.84,129.79,35.06275765]
[1744653075136,6.436,129.84,129.8,27.35825765]
[1744653075457,29.01755765,129.86,129.82,27.35825765]
[1744653075665,29.01755765,129.86,129.81,27.35825765]
[1744653075957,1.6593,129.86,129.81,27.35825765]
[1744653076133,36.71815765,129.86,129.81,7.7033]
[1744653076333,27.35825765,129.85,129.81,35.06155765]
[1744653076550,27.35825765,129.85,129.81,27.35825765]
[1744653077460,36.71815765,129.86,129.81,27.35825765]
[1744653077760,6.5128,129.88,129.85,27.35825765]
[1744653078166,27.35825765,129.86,129.82,27.35825765]
[1744653078339,27.35825765,129.85,129.79,7.7047]
[1744653078538,27.35825765,129.83,129.79,7.7047]
[1744653078737,27.35825765,129.83,129.79,35.06295765]
[1744653078942,27.35825765,129.84,129.8,27.35825765]
[1744653079349,27.35825765,129.84,129.79,35.06295765]
[1744653079554,27.35825765,129.83,129.79,35.06295765]
[1744653079756,27.35825765,129.84,129.79,35.06295765]
[1744653080450,27.35825765,129.84,129.8,27.35825765]
[1744653081055,27.35825765,129.84,129.8,35.06195765]
[1744653081442,27.35825765,129.86,129.81,27.35825765]
[1744653081859,27.35825765,129.85,129.8,7.7037]
[1744653082052,27.35825765,129.85,129.81,27.35825765]
[1744653082569,27.35825765,129.87,129.83,27.35825765]
[1744653082756,36.69415765,129.89,129.84,27.35825765]
[1744653083071,6.4215,129.91,129.87,27.35825765]
[1744653083251,33.77975765,129.91,129.84,27.35825765]
[1744653083438,6.4215,129.91,129.87,27.35825765]
[1744653083844,33.77975765,129.91,129.86,27.35825765]
[1744653084041,27.35825765,129.89,129.82,15.4029]
[1744653084253,46.00790651,129.9,129.82,35.06115765]
[1744653084463,27.35825765,129.87,129.82,35.06115765]
[1744653084843,27.35825765,129.86,129.82,7.7029]
[1744653085043,27.35825765,129.85,129.79,7.84216157]
[1744653085546,27.35825765,129.84,129.79,35.05825765]
[1744653085755,27.35825765,129.83,129.79,35.06275765]
[1744653085960,27.35825765,129.84,129.79,35.06275765]
[1744653086887,27.35825765,129.83,129.79,35.06275765]
[1744653087380,27.35825765,129.84,129.79,35.06275765]
[1744653087683,27.35825765,129.83,129.79,7.7045]
[1744653087873,27.35825765,129.82,129.79,7.7045]
[1744653088051,1.5604,129.85,129.79,7.7045]
[1744653088052,27.35825765,129.83,129.79,7.7045]
[1744653088364,27.35825765,129.8,129.76,27.35825765]
[1744653088678,27.35825765,129.81,129.76,27.35825765]
[1744653088857,27.35825765,129.81,129.76,35.06475765]
[1744653089042,27.35825765,129.82,129.78,27.35825765]
[1744653089245,27.35825765,129.83,129.78,27.35825765]
[1744653089641,1.5604,129.85,129.8,27.35825765]
[1744653089845,27.35825765,129.85,129.81,27.35825765]
[1744653090065,27.35825765,129.85,129.78,27.35825765]
[1744653090261,27.35825765,129.85,129.8,27.35825765]
[1744653090465,27.35825765,129.85,129.81,27.35825765]
[1744653090969,27.35825765,129.85,129.81,35.06155765]
[1744653091170,27.35825765,129.85,129.81,7.7033]
[1744653091374,27.35825765,129.84,129.79,27.35825765]
[1744653091672,35.05955765,129.85,129.8,27.35825765]
[1744653092053,27.35825765,129.81,129.76,7.7062]
[1744653092268,27.35825765,129.79,129.76,7.7062]
[1744653092443,27.35825765,129.8,129.76,7.7062]
[1744653092757,27.35825765,129.82,129.77,27.35825765]
[1744653092945,27.35825765,129.82,129.78,7.7053]
[1744653093394,35.06015765,129.84,129.79,27.35825765]
[1744653093566,27.35825765,129.83,129.79,27.35825765]
[1744653093766,27.35825765,129.83,129.78,35.06355765]
[1744653094751,27.35825765,129.83,129.79,27.35825765]
[1744653095192,27.35825765,129.83,129.78,35.06355765]
[1744653096848,27.35825765,129.83,129.78,7.7053]
[1744653097049,27.35825765,129.83,129.78,35.06355765]
[1744653097370,27.35825765,129.81,129.78,7.7053]
[1744653097749,27.35825765,129.82,129.78,7.7053]
[1744653097958,27.35825765,129.82,129.78,35.06355765]
[1744653098176,27.35825765,129.82,129.78,7.7053]
[1744653098377,27.35825765,129.81,129.77,7.7056]
[1744653098582,27.35825765,129.8,129.76,35.06445765]
[1744653098879,35.06235765,129.8,129.76,7.7062]
[1744653099064,27.35825765,129.79,129.75,7.7069]
[1744653099259,27.35825765,129.8,129.75,35.06515765]
[1744653099475,29.01465765,129.82,129.77,27.35825765]
[1744653100069,27.35825765,129.82,129.78,27.35825765]
[1744653100272,27.35825765,129.83,129.78,27.35825765]
[1744653100459,88.5014,129.85,129.79,27.35825765]
[1744653100676,27.35825765,129.84,129.8,7.7041]
[1744653100860,27.35825765,129.83,129.8,7.7041]
[1744653101255,27.35825765,129.85,129.81,27.35825765]
[1744653101671,27.35825765,129.85,129.8,7.7041]
[1744653101959,27.35825765,129.85,129.81,27.35825765]
[1744653102159,36.71465765,129.86,129.81,27.35825765]
[1744653102355,9.3564,129.86,129.81,27.35825765]
[1744653102556,36.71465765,129.86,129.82,7.7029]
[1744653102755,9.3564,129.86,129.82,7.7029]
[1744653102986,36.71465765,129.86,129.82,7.7029]
[1744653103203,27.35825765,129.88,129.84,27.35825765]
[1744653103487,0.03,129.88,129.87,27.35825765]
[1744653103863,0.03,129.88,129.85,27.35825765]
[1744653104278,0.03,129.88,129.83,0.42648471]
[1744653104456,0.03,129.88,129.87,27.35825765]
[1744653104654,0.03,129.88,129.87,35.05825765]
[1744653105084,0.03,129.88,129.86,35.05855765]
[1744653106477,0.03,129.88,129.86,7.7003]
[1744653106782,0.03,129.88,129.87,27.35825765]
[1744653108173,0.03,129.88,129.86,27.35825765]
[1744653108760,0.03,129.88,129.87,27.50041922]
[1744653108955,0.03,129.88,129.87,29.44400393]
[1744653109160,0.03,129.88,129.87,48.09365279]
[1744653109473,0.03,129.88,129.87,29.01751922]
[1744653109671,0.03,129.88,129.87,1.65926157]
[1744653109874,0.03,129.88,129.87,27.35825765]
[1744653110185,0.03,129.88,129.87,35.05825765]
[1744653110587,0.03,129.88,129.87,7.7]
[1744653110887,0.03,129.88,129.87,35.05825765]
[1744653111066,0.03,129.88,129.87,7.7]
[1744653111773,0.03,129.88,129.87,35.05825765]
[1744653112275,0.03,129.88,129.87,7.7]
[1744653112476,0.03,129.88,129.87,35.05825765]
[1744653115390,0.03,129.88,129.87,35.20041922]
[1744653117066,0.03,129.91,129.89,0.14216157]
[1744653117373,0.0001,129.91,129.9,82.9100873]
[1744653118686,0.0001,129.91,129.9,88.9859302]
[1744653119083,0.0001,129.91,129.9,96.6841302]
[1744653120184,0.0001,129.91,129.9,72.24296158]
[1744653120495,0.0001,129.91,129.9,44.88470393]
[1744653121195,0.0001,129.91,129.9,72.24296158]
[1744653121800,0.0001,129.91,129.9,44.45821922]
[1744653122001,0.0001,129.91,129.89,7.6985]
[1744653122002,27.35835765,129.91,129.89,7.6985]
[1744653122300,27.35835765,129.91,129.87,35.05825765]
[1744653122504,0.0001,129.91,129.87,35.05825765]
[1744653122974,0.0001,129.91,129.87,54.30825765]
[1744653123573,0.0001,129.91,129.89,27.35825765]
[1744653123994,0.0001,129.91,129.88,27.50041922]
[1744653124192,0.0001,129.91,129.89,27.35825765]
[1744653124393,0.0001,129.91,129.89,35.05645765]
[1744653125499,0.0001,129.91,129.9,35.05645765]
[1744653125911,0.0001,129.91,129.9,35.19861922]
[1744653126389,13.8399,129.98,129.9,35.19861922]
[1744653126390,0.03,129.98,129.95,0.14216157]
[1744653126804,0.03,129.98,129.96,27.35825765]
[1744653127103,0.03,129.98,129.93,0.56864628]
[1744653127402,0.03,129.98,129.95,27.35825765]
[1744653127704,0.03,129.98,129.97,7.694]
[1744653127999,0.03,129.98,129.96,35.05265765]
[1744653128302,0.03,129.98,129.97,27.35825765]
[1744653128471,0.03,129.98,129.94,7.6958]
[1744653128672,27.38825765,129.98,129.94,7.6958]
[1744653129107,27.35825765,129.97,129.94,7.6958]
[1744653129281,27.38825765,129.98,129.94,7.6958]
[1744653129706,27.35825765,129.97,129.93,7.6961]
[1744653129911,27.35825765,129.97,129.93,35.05435765]
[1744653130213,27.38825765,129.98,129.93,35.05435765]
[1744653130395,0.03,129.98,129.95,27.35825765]
[1744653130999,27.38825765,129.98,129.94,27.35825765]
[1744653131201,0.03,129.98,129.94,27.35825765]
[1744653131592,0.03,129.98,129.95,27.35825765]
[1744653131796,0.03,129.98,129.96,35.05285765]
[1744653131993,0.03,129.98,129.93,19.66758471]
[1744653131994,0.03,129.98,129.95,7.6949]
[1744653132398,0.03,129.98,129.95,35.05315765]
[1744653132595,0.03,129.98,129.96,27.35825765]
[1744653132802,0.03,129.98,129.97,27.35825765]
[1744653133186,0.03,129.98,129.96,0.14216157]
[1744653133381,0.03,129.98,129.96,27.35825765]
[1744653133586,0.03,129.98,129.95,35.05315765]
[1744653133788,0.03,129.98,129.95,7.6949]
[1744653133984,27.38825765,129.98,129.94,27.35825765]
[1744653134301,0.03,129.98,129.94,27.35825765]
[1744653134605,0.03,129.98,129.95,27.35825765]
[1744653136310,0.03,129.98,129.96,35.05285765]
[1744653136517,0.03,129.98,129.96,7.6946]
[1744653137510,0.03,129.98,129.96,35.05285765]
[1744653138500,0.03,129.98,129.95,7.6949]
[1744653139416,0.03,129.98,129.95,35.05315765]
[1744653139614,0.03,129.98,129.97,27.35825765]
[1744653139915,0.03,129.98,129.97,27.50041922]
[1744653140291,0.03,129.98,129.97,35.19441922]
[1744653142415,0.03,130.01,129.98,0.42648471]
[1744653142626,0.03,130.01,130.0,27.35825765]
[1744653142823,0.03,130.01,129.99,27.35825765]
[1744653143013,0.03,130.01,130.0,27.35825765]
[1744653143703,0.03,130.01,129.97,7.694]
[1744653143907,0.03,130.01,129.97,35.05225765]
[1744653144108,27.38825765,130.01,129.97,35.05225765]
[1744653144625,27.35825765,130.0,129.96,35.05265765]
[1744653145004,7.7217,130.01,129.95,7.6949]
[1744653145005,27.35825765,129.99,129.95,7.6949]
[1744653145209,7.7217,130.01,129.94,35.18041922]
[1744653145210,27.35825765,129.97,129.94,7.6955]
[1744653145519,27.35825765,129.97,129.93,7.6962]
[1744653145735,27.35825765,129.97,129.93,35.05445765]
[1744653146023,27.35825765,129.98,129.93,35.05445765]
[1744653146320,27.35825765,129.98,129.94,35.05345765]
[1744653146521,7.6926,130.0,129.94,35.05345765]
[1744653146708,0.03,130.01,129.96,27.35825765]
[1744653146907,27.38825765,130.01,129.96,27.35825765]
[1744653147430,27.38825765,130.01,129.97,27.35825765]
[1744653147600,35.07995765,130.01,129.96,27.35825765]
[1744653147800,0.03,130.01,129.99,27.35825765]
[1744653148320,0.03,130.01,129.99,35.05075765]
[1744653150736,0.03,130.01,129.96,19.80514628]
[1744653150903,0.03,130.01,129.97,0.14216157]
[1744653151103,0.03,130.01,129.98,27.35825765]
[1744653152026,27.38825765,130.01,129.97,35.05225765]
[1744653152523,27.38825765,130.01,129.96,54.28935765]
[1744653152726,27.35825765,129.99,129.95,15.3749]
[1744653152918,27.35825765,129.98,129.95,7.6949]
[1744653153115,27.35825765,129.97,129.94,7.6956]
[1744653153501,6.2439,129.99,129.94,7.6956]
[1744653153824,27.35825765,129.97,129.94,7.6956]
[1744653154229,27.35825765,129.97,129.93,7.6964]
[1744653154401,13.9373,129.99,129.93,7.6964]
[1744653154602,13.9373,129.99,129.93,35.05465765]
[1744653154825,33.1695,129.99,129.92,35.05495765]
[1744653155028,27.35825765,129.95,129.92,7.6967]
[1744653155525,27.35825765,129.96,129.92,7.6967]
[1744653155699,27.35825765,129.94,129.91,7.6973]
[1744653155905,27.35825765,129.93,129.89,7.6982]
[1744653156226,27.35825765,129.93,129.88,35.05765765]
[1744653156604,7.696,129.94,129.88,35.05765765]
[1744653156828,27.35825765,129.93,129.88,35.05765765]
[1744653157030,27.35825765,129.92,129.88,35.05765765]
[1744653157224,27.35825765,129.93,129.88,35.05765765]
[1744653157427,27.35825765,129.93,129.89,35.05645765]
[1744653158240,7.696,129.94,129.89,7.6982]
[1744653158418,28.89735765,129.96,129.92,27.35825765]
[1744653158419,1.5391,129.96,129.92,27.35825765]
[1744653158613,27.35825765,129.97,129.92,27.35825765]
[1744653158827,27.35825765,129.98,129.94,27.35825765]
[1744653159340,27.35825765,129.98,129.94,7.6958]
[1744653159720,27.35825765,129.98,129.94,35.05405765]
[1744653160617,21.617,129.99,129.94,7.6958]
[1744653160838,27.35825765,129.98,129.94,7.6958]
[1744653161134,21.617,129.99,129.94,7.6958]
[1744653161334,27.35825765,129.98,129.94,7.6958]
[1744653162032,27.35825765,129.98,129.94,35.05405765]
[1744653164330,27.35825765,129.98,129.94,7.6958]
[1744653164735,27.35825765,129.97,129.94,7.6958]
[1744653165549,27.35825765,129.98,129.94,7.6958]
[1744653166045,27.35825765,129.97,129.94,7.6958]
[1744653166246,27.35825765,129.98,129.94,7.6958]
[1744653167249,27.35825765,129.97,129.94,7.6958]
[1744653168257,27.35825765,129.98,129.94,7.6958]
[1744653168449,27.35825765,129.97,129.94,7.6958]
[1744653169731,27.35825765,129.98,129.94,7.6958]
[1744653169933,27.35825765,129.97,129.94,7.6958]
[1744653170856,27.35825765,129.95,129.9,46.74571922]
[1744653171552,27.35825765,129.95,129.91,7.6976]
[1744653171854,27.35825765,129.94,129.91,7.6976]
[1744653172350,27.35825765,129.94,129.9,7.6982]
[1744653172854,27.35825765,129.93,129.9,7.6982]
[1744653173264,15.3736,129.98,129.92,27.35825765]
[1744653173433,27.35825765,129.98,129.94,27.35825765]
[1744653173634,27.35825765,129.97,129.93,27.35825765]
[1744653173837,27.35825765,129.97,129.92,27.35825765]
[1744653174456,7.6929,129.99,129.93,7.6964]
[1744653174662,27.35825765,129.97,129.93,35.05465765]
[1744653174862,27.35825765,129.98,129.93,35.05465765]
[1744653175164,27.35825765,129.97,129.93,7.6964]
[1744653177159,27.35825765,129.98,129.93,35.05465765]
[1744653177861,27.35825765,129.97,129.93,35.05465765]
[1744653178065,27.35825765,129.98,129.93,35.05465765]
[1744653178566,35.05135765,129.99,129.94,27.35825765]
[1744653178758,27.35825765,129.99,129.94,27.35825765]
[1744653179261,17.04104027,129.98,129.93,7.6964]
[1744653179561,17.04104027,129.98,129.93,24.73744027]
[1744653180353,7.693,129.99,129.93,24.73744027]
[1744653180558,17.04104027,129.98,129.94,17.04104027]
[1744653180776,17.04104027,129.99,129.94,17.04104027]
[1744653181441,0.03,130.01,129.98,17.04104027]
[1744653181647,0.03,130.01,129.99,17.04104027]
[1744653181965,0.03,130.01,129.98,17.04104027]
[1744653182749,0.03,130.01,129.98,24.73394027]
[1744653183461,17.04104027,130.0,129.95,24.72104027]
[1744653183671,17.04104027,129.99,129.96,7.6943]
[1744653184658,7.6923,130.0,129.96,7.6943]
[1744653184838,17.04104027,129.99,129.96,7.6943]
[1744653185043,17.04104027,129.99,129.95,15.375]
[1744653185459,17.04104027,129.99,129.95,32.41604027]
[1744653186251,7.6923,130.0,129.95,15.375]
[1744653186252,17.04104027,130.0,129.95,15.375]
[1744653186450,17.04104027,129.99,129.95,32.41604027]
[1744653186666,17.04104027,130.0,129.95,32.41604027]